bitfinex-derivatives/quotes_BTCF0:USTF0_20220103
["timestamp","ask_amount","ask_price","bid_price","bid_amount"]
[1641176194924,0.1115385,46892.0,46891.0,0.20509571]
[1641176195327,0.1115385,46892.0,46891.0,0.19209571]
[1641176195929,0.1115385,46892.0,46891.0,0.38509571]
[1641176196829,0.1115385,46892.0,46891.0,0.20509571]
[1641176197235,0.1115385,46892.0,46891.0,0.01209571]
[1641176197433,0.1115385,46892.0,46891.0,1.21785432]
[1641176197631,0.1115385,46892.0,46891.0,1.39785432]
[1641176197833,0.1115385,46892.0,46891.0,1.21785432]
[1641176198031,0.1115385,46892.0,46891.0,0.38509571]
[1641176198232,0.1115385,46892.0,46891.0,0.20509571]
[1641176198831,0.92336486,46892.0,46891.0,0.20509571]
[1641176199032,0.92336486,46892.0,46891.0,1.41085432]
[1641176199431,0.92336486,46892.0,46891.0,1.33785432]
[1641176199632,0.92336486,46892.0,46891.0,1.39785432]
[1641176200032,0.92336486,46892.0,46891.0,1.59085432]
[1641176200642,0.92336486,46892.0,46891.0,1.41085432]
[1641176200945,0.92336486,46892.0,46891.0,1.59085432]
[1641176201141,0.92336486,46892.0,46891.0,1.21785432]
[1641176201741,0.92886024,46892.0,46891.0,1.39785432]
[1641176201944,0.92886024,46892.0,46891.0,1.59285432]
[1641176202546,0.92886024,46892.0,46891.0,0.20709571]
[1641176203447,0.92886024,46892.0,46891.0,0.01209571]
[1641176203848,0.92886024,46892.0,46891.0,0.19209571]
[1641176204048,0.92886024,46892.0,46891.0,0.38809571]
[1641176204249,0.92886024,46892.0,46891.0,1.59385432]
[1641176204448,0.92886024,46892.0,46891.0,1.41385432]
[1641176204749,0.11703388,46892.0,46891.0,1.41385432]
[1641176205250,0.11703388,46892.0,46891.0,1.21785432]
[1641176205950,0.11703388,46892.0,46891.0,1.41385432]
[1641176206849,0.11703388,46892.0,46891.0,1.59385432]
[1641176207050,0.11703388,46892.0,46891.0,1.58175861]
[1641176207251,0.11703388,46892.0,46891.0,1.39785461]
[1641176207450,0.11703388,46892.0,46891.0,1.21785461]
[1641176208050,0.11703388,46892.0,46891.0,1.41385461]
[1641176208051,0.92886024,46892.0,46891.0,1.41385461]
[1641176208251,0.92886024,46892.0,46891.0,0.208096]
[1641176209450,0.92886024,46892.0,46891.0,0.012096]
[1641176210052,0.92886024,46892.0,46891.0,0.208096]
[1641176210652,0.92886024,46892.0,46891.0,0.196]
[1641176210954,0.92886024,46892.0,46891.0,0.20809607]
[1641176211353,0.92886024,46892.0,46891.0,0.01209607]
[1641176211955,0.92886024,46892.0,46891.0,0.20709607]
[1641176213457,0.81732174,46892.0,46891.0,0.20709607]
[1641176214059,0.81732174,46892.0,46891.0,0.20809607]
[1641176214060,0.00549538,46892.0,46891.0,0.20809607]
[1641176215558,0.00549538,46892.0,46891.0,0.01209607]
[1641176215760,0.11729067,46892.0,46891.0,0.01209607]
[1641176215957,0.11729067,46892.0,46891.0,1.41768976]
[1641176216258,0.11729067,46892.0,46891.0,1.40559369]
[1641176216558,0.00549538,46892.0,46891.0,0.20809607]
[1641176217262,0.11728897,46892.0,46891.0,1.41768954]
[1641176217462,0.11728897,46892.0,46891.0,1.22168954]
[1641176218062,0.11728897,46892.0,46891.0,1.41768954]
[1641176219363,0.11728897,46892.0,46891.0,1.22168954]
[1641176219866,0.00549538,46892.0,46891.0,0.01209607]
[1641176220065,0.00549538,46892.0,46891.0,0.20809607]
[1641176220369,0.11729739,46892.0,46891.0,0.20809607]
[1641176221869,0.92912375,46892.0,46891.0,0.20809607]
[1641176222469,0.11729739,46892.0,46891.0,0.20809607]
[1641176224071,0.11729739,46892.0,46891.0,1.61370425]
[1641176224471,0.00549538,46892.0,46891.0,1.61370425]
[1641176224672,0.00549538,46892.0,46891.0,0.40409607]
[1641176225472,0.00549538,46892.0,46891.0,0.01209607]
[1641176225876,0.00549538,46892.0,46890.0,0.0002]
[1641176226074,0.00549538,46892.0,46891.0,0.196]
[1641176226476,0.00549538,46892.0,46891.0,0.20809607]
[1641176227275,0.00549538,46892.0,46891.0,0.01209607]
[1641176227775,0.00549538,46892.0,46890.0,0.01229607]
[1641176228176,0.00549538,46892.0,46891.0,0.196]
[1641176228375,0.00549538,46893.0,46891.0,0.20809607]
[1641176228778,0.00549538,46893.0,46892.0,0.01209607]
[1641176229578,0.92025938,46893.0,46892.0,1.22169608]
[1641176229978,0.92025938,46893.0,46892.0,1.20960001]
[1641176230276,0.92025938,46893.0,46892.0,1.41669608]
[1641176231079,0.92025938,46893.0,46892.0,1.95170608]
[1641176231278,0.14043567,46900.0,46893.0,1.21603744]
[1641176231479,0.14043567,46900.0,46899.0,0.18]
[1641176232080,0.14043567,46900.0,46899.0,0.372]
[1641176232479,0.14518694,46900.0,46899.0,0.70496748]
[1641176233080,0.14033567,46909.0,46900.0,0.2812486]
[1641176233281,0.14033567,46909.0,46903.0,0.18]
[1641176233980,0.14033567,46909.0,46905.0,0.60466621]
[1641176234182,0.00539041,46908.0,46905.0,0.60466621]
[1641176236084,0.00539041,46908.0,46906.0,0.60466621]
[1641176238085,0.00539041,46908.0,46906.0,0.80066621]
[1641176238485,0.00539041,46908.0,46906.0,0.196]
[1641176238985,0.14033567,46909.0,46906.0,0.196]
[1641176239385,0.14033567,46909.0,46905.0,0.60466621]
[1641176239987,0.14033567,46909.0,46906.0,0.009794]
[1641176240190,0.0001,46910.0,46907.0,0.18]
[1641176240389,1.39271856,46912.0,46907.0,0.68505599]
[1641176240587,1.39271856,46912.0,46910.0,0.18]
[1641176241388,1.39271856,46916.0,46910.0,0.18]
[1641176242202,1.39271856,46916.0,46910.0,0.373]
[1641176243102,1.39271856,46918.0,46911.0,0.60459178]
[1641176243703,1.39271856,46918.0,46911.0,0.61438578]
[1641176244205,1.39271856,46918.0,46911.0,0.80438578]
[1641176245705,1.39271856,46918.0,46911.0,0.61438578]
[1641176246107,1.39271856,46917.0,46911.0,0.80438578]
[1641176246908,0.10418793,46916.0,46911.0,0.80438578]
[1641176247506,0.10418793,46916.0,46911.0,0.61438578]
[1641176247707,0.10418793,46917.0,46912.0,0.60459178]
[1641176249308,0.10418793,46918.0,46912.0,0.60459178]
[1641176250112,0.10418793,46918.0,46912.0,0.79459178]
[1641176251516,0.10418793,46918.0,46912.0,0.60459178]
[1641176252215,0.18,46913.0,46912.0,0.79459178]
[1641176252414,0.40949567,46913.0,46912.0,0.79459178]
[1641176252815,0.22949567,46913.0,46912.0,0.79459178]
[1641176253014,0.08916,46913.0,46912.0,0.99590552]
[1641176253216,1.39271856,46916.0,46912.0,2.11090552]
[1641176253416,1.39271856,46916.0,46914.0,0.18]
[1641176253618,1.39271856,46916.0,46915.0,0.02131362]
[1641176254214,1.39271856,46916.0,46915.0,0.21231362]
[1641176254414,1.39271856,46916.0,46915.0,0.3647397]
[1641176254618,1.39271856,46922.0,46915.0,0.3647397]
[1641176254817,1.39271856,46922.0,46915.0,1.21128893]
[1641176255216,1.39271856,46922.0,46916.0,0.01209041]
[1641176255916,1.49690649,46923.0,46916.0,0.01209041]
[1641176256116,1.49690649,46923.0,46917.0,0.60456804]
[1641176257018,0.10418793,46923.0,46917.0,0.60456804]
[1641176257221,0.10418793,46923.0,46918.0,0.60456804]
[1641176257919,0.10418793,46922.0,46918.0,0.60456804]
[1641176258120,0.10418793,46922.0,46918.0,0.79156804]
[1641176258719,1.53305423,46924.0,46918.0,0.79156804]
[1641176258720,0.10418793,46921.0,46918.0,0.79156804]
[1641176259421,0.10428793,46920.0,46918.0,0.60456804]
[1641176259920,0.10418793,46919.0,46918.0,0.60456804]
[1641176260121,0.10418793,46919.0,46918.0,0.79156804]
[1641176261626,0.10418793,46919.0,46918.0,0.60456804]
[1641176262326,0.10418793,46919.0,46918.0,0.79256804]
[1641176263725,0.10418793,46919.0,46918.0,0.60456804]
[1641176264225,0.10418793,46919.0,46918.0,0.79156804]
[1641176264426,0.0001,46920.0,46918.0,0.79156804]
[1641176264829,0.0001,46920.0,46918.0,0.187]
[1641176265628,0.0001,46920.0,46917.0,0.009794]
[1641176266329,0.0001,46920.0,46917.0,0.193794]
[1641176267131,0.0001,46920.0,46918.0,0.318069]
[1641176267332,1.99153567,46928.0,46921.0,0.42614589]
[1641176267530,0.14033567,46928.0,46919.0,0.01208958]
[1641176267730,0.14033567,46928.0,46922.0,0.331201]
[1641176268131,0.14033567,46928.0,46922.0,0.009794]
[1641176268330,0.14033567,46928.0,46922.0,0.192794]
[1641176269032,0.1036388,46927.0,46923.0,0.60456804]
[1641176270234,0.1036388,46927.0,46926.0,0.0213083]
[1641176271238,0.1036388,46927.0,46924.0,0.60456804]
[1641176271638,0.18,46926.0,46924.0,0.60456804]
[1641176272237,0.18,46926.0,46925.0,0.60456804]
[1641176273337,0.2836388,46926.0,46917.0,0.60456804]
[1641176273639,0.18,46921.0,46917.0,0.60456804]
[1641176273837,0.18,46925.0,46917.0,0.60456804]
[1641176274239,0.18,46925.0,46917.0,0.79356804]
[1641176274739,0.14033567,46921.0,46917.0,0.189]
[1641176275449,0.1036388,46920.0,46917.0,0.79356804]
[1641176275649,0.1036388,46920.0,46917.0,0.60456804]
[1641176276249,0.1036388,46920.0,46917.0,0.79456804]
[1641176277754,0.1036388,46920.0,46917.0,0.60456804]
[1641176278352,0.1036388,46920.0,46917.0,0.79256804]
[1641176279753,0.1036388,46920.0,46918.0,0.01209015]
[1641176279952,0.1036388,46920.0,46918.0,0.61665819]
[1641176280356,0.1036388,46920.0,46919.0,0.02131209]
[1641176280552,0.1036388,46920.0,46919.0,0.03340224]
[1641176282354,1.39574109,46927.0,46920.0,0.009794]
[1641176282755,1.39574109,46927.0,46923.0,0.34627053]
[1641176283156,1.39574109,46927.0,46924.0,0.05935436]
[1641176283857,1.39574109,46927.0,46924.0,0.003395]
[1641176284256,1.39574109,46927.0,46924.0,0.193395]
[1641176284457,1.39574109,46927.0,46925.0,0.01208846]
[1641176284658,1.39574109,46932.0,46926.0,0.60446454]
[1641176285656,1.39574109,46932.0,46927.0,0.009794]
[1641176285856,1.39574109,46932.0,46927.0,0.331343]
[1641176286058,0.14033567,46934.0,46927.0,1.11580754]
[1641176286059,1.39574109,46933.0,46927.0,1.11580754]
[1641176286257,1.39574109,46933.0,46927.0,0.98525854]
[1641176286458,1.39574109,46933.0,46927.0,0.80525854]
[1641176287259,0.14033567,46934.0,46927.0,1.6515089]
[1641176287260,1.53607676,46934.0,46927.0,1.6515089]
[1641176287461,1.53607676,46934.0,46928.0,0.60446454]
[1641176288162,0.34935053,46930.0,46927.0,0.009794]
[1641176288359,0.34935053,46930.0,46928.0,0.189]
[1641176289562,0.34935053,46930.0,46927.0,0.009794]
[1641176290162,0.34935053,46930.0,46928.0,0.31833]
[1641176290665,0.34935053,46930.0,46927.0,0.198794]
[1641176291064,0.0001,46930.0,46927.0,0.198794]
[1641176291764,0.0001,46930.0,46927.0,0.009794]
[1641176292164,0.34935053,46930.0,46927.0,0.009794]
[1641176292364,0.34935053,46930.0,46927.0,0.203794]
[1641176293665,0.34935053,46930.0,46927.0,0.009794]
[1641176294264,0.34935053,46930.0,46927.0,0.202794]
[1641176295367,0.26375053,46930.0,46927.0,0.202794]
[1641176295566,0.26375053,46930.0,46927.0,0.009794]
[1641176296267,0.26375053,46930.0,46927.0,0.202794]
[1641176297567,0.26375053,46930.0,46927.0,0.009794]
[1641176298068,0.26375053,46930.0,46928.0,0.18]
[1641176298270,0.26375053,46930.0,46929.0,0.02130729]
[1641176298669,0.26375053,46930.0,46929.0,0.03339453]
[1641176298869,0.26375053,46930.0,46929.0,0.2611202]
[1641176299369,0.91512379,46933.0,46929.0,0.2611202]
[1641176299570,0.81491791,46937.0,46932.0,0.18]
[1641176299770,0.81491791,46937.0,46931.0,0.18]
[1641176299969,0.81491791,46937.0,46930.0,0.01208724]
[1641176300172,0.81491791,46937.0,46929.0,0.16164296]
[1641176300369,0.81491791,46937.0,46931.0,0.191]
[1641176300571,0.91512379,46938.0,46931.0,0.191]
[1641176300773,0.91512379,46938.0,46933.0,0.42613393]
[1641176301172,0.81491791,46938.0,46934.0,0.319061]
[1641176302275,0.81491791,46938.0,46934.0,0.509061]
[1641176302877,0.14043567,46940.0,46937.0,0.58773455]
[1641176302878,0.0001,46940.0,46937.0,0.58773455]
[1641176303077,0.0001,46940.0,46938.0,0.009794]
[1641176303380,0.0001,46940.0,46938.0,0.330554]
[1641176303578,0.0001,46940.0,46938.0,0.009794]
[1641176304378,0.0001,46940.0,46938.0,0.203794]
[1641176305180,0.0001,46940.0,46939.0,0.320129]
[1641176306281,0.0001,46940.0,46939.0,0.513129]
[1641176306481,0.35004143,46940.0,46939.0,0.513129]
[1641176307981,0.0001,46940.0,46939.0,0.513129]
[1641176308180,0.0001,46940.0,46939.0,0.320129]
[1641176308383,0.0001,46940.0,46939.0,0.514129]
[1641176308582,0.0001,46940.0,46939.0,0.194]
[1641176309180,0.0001,46940.0,46939.0,0.513204]
[1641176309582,0.0001,46940.0,46939.0,0.319204]
[1641176309781,0.0001,46940.0,46938.0,0.009794]
[1641176310382,0.0001,46940.0,46938.0,0.205794]
[1641176310983,0.0001,46940.0,46939.0,0.31793]
[1641176311185,0.18,46948.0,46939.0,0.31793]
[1641176311186,1.57574109,46948.0,46940.0,0.3461723]
[1641176311482,1.57574109,46948.0,46941.0,0.321611]
[1641176311883,1.53607676,46949.0,46939.0,0.320398]
[1641176312085,0.18,46948.0,46939.0,0.320398]
[1641176312283,1.53607676,46949.0,46941.0,0.192]
[1641176312484,0.18,46948.0,46941.0,0.192]
[1641176312684,1.57574109,46948.0,46942.0,0.320219]
[1641176312885,1.39574109,46948.0,46943.0,0.009794]
[1641176313085,1.57574109,46948.0,46943.0,0.009794]
[1641176313285,1.57574109,46948.0,46943.0,0.325334]
[1641176313689,0.18,46948.0,46943.0,0.325334]
[1641176314289,0.18,46948.0,46943.0,0.519334]
[1641176314990,0.18,46948.0,46943.0,0.203794]
[1641176315588,0.18,46948.0,46943.0,0.009794]
[1641176315988,0.14033567,46949.0,46943.0,0.009794]
[1641176316292,0.18,46948.0,46943.0,0.202794]
[1641176317592,0.18,46948.0,46943.0,0.009794]
[1641176318394,0.18,46948.0,46943.0,0.522494]
[1641176318694,0.11669343,46944.0,46943.0,0.522494]
[1641176319595,0.11669343,46944.0,46943.0,0.329494]
[1641176319998,0.11669343,46944.0,46943.0,0.009794]
[1641176320397,0.11669343,46944.0,46943.0,0.519857]
[1641176320797,0.11669343,46944.0,46943.0,0.54115826]
[1641176321599,0.11669343,46944.0,46943.0,0.34915826]
[1641176322001,0.14033567,46949.0,46944.0,0.30934442]
[1641176322399,0.14033567,46949.0,46945.0,0.320767]
[1641176322800,0.14033567,46949.0,46944.0,0.314596]
[1641176323801,0.14033567,46949.0,46943.0,0.03109526]
[1641176324322,0.14033567,46949.0,46943.0,0.22609526]
[1641176325621,0.14033567,46949.0,46943.0,0.03109526]
[1641176326023,0.35024058,46945.0,46943.0,0.03109526]
[1641176326422,0.35024058,46945.0,46943.0,0.22809526]
[1641176327523,0.35024058,46945.0,46944.0,0.319817]
[1641176328325,0.35024058,46947.0,46944.0,0.515817]
[1641176330025,0.35024058,46948.0,46944.0,0.515817]
[1641176330227,0.35024058,46948.0,46944.0,0.319817]
[1641176330427,0.35024058,46948.0,46944.0,0.514817]
[1641176331328,0.0001,46950.0,46948.0,0.07575937]
[1641176331726,0.0001,46950.0,46949.0,0.321327]
[1641176332327,0.0001,46950.0,46949.0,1.436327]
[1641176332526,1.39584109,46960.0,46949.0,1.91745188]
[1641176332726,1.39584109,46960.0,46949.0,1.73745188]
[1641176332925,0.0001,46960.0,46949.0,1.91745188]
[1641176333127,0.0001,46960.0,46951.0,0.14033567]
[1641176333526,0.0001,46960.0,46952.0,0.313152]
[1641176334326,0.0001,46960.0,46952.0,0.507152]
[1641176334828,0.0001,46960.0,46953.0,0.009794]
[1641176335228,0.0001,46960.0,46956.0,0.14033567]
[1641176336429,0.0001,46960.0,46956.0,0.33533567]
[1641176337729,0.0001,46960.0,46956.0,0.14033567]
[1641176338128,0.81898457,46959.0,46956.0,0.14033567]
[1641176338328,0.81898457,46959.0,46956.0,0.33333567]
[1641176338731,0.90311457,46959.0,46956.0,0.193]
[1641176339129,1.04345024,46959.0,46956.0,0.193]
[1641176339730,1.04345024,46959.0,46951.0,0.14033567]
[1641176340330,0.09143488,46958.0,46951.0,0.14033567]
[1641176340531,0.09143488,46958.0,46952.0,0.317612]
[1641176340730,0.09143488,46958.0,46951.0,0.33633567]
[1641176340931,0.9104337,46958.0,46951.0,0.33633567]
[1641176341830,0.9104337,46958.0,46951.0,0.14033567]
[1641176342030,0.35097645,46955.0,46951.0,0.14033567]
[1641176342432,0.35097645,46955.0,46951.0,0.33533567]
[1641176342831,0.35097645,46958.0,46951.0,0.33533567]
[1641176343832,0.35097645,46958.0,46951.0,0.14033567]
[1641176344431,0.35097645,46958.0,46952.0,0.09634379]
[1641176344631,0.35097645,46958.0,46957.0,0.02129447]
[1641176345433,0.95933449,46959.0,46957.0,0.02129447]
[1641176346334,0.95933449,46959.0,46957.0,0.21529447]
[1641176346734,0.09125244,46958.0,46957.0,0.21529447]
[1641176347435,0.95933449,46959.0,46957.0,0.21529447]
[1641176347636,0.95933449,46959.0,46957.0,0.02129447]
[1641176348137,0.09124935,46958.0,46957.0,0.02129447]
[1641176348335,0.09124935,46958.0,46957.0,0.21529447]
[1641176349836,0.09124935,46958.0,46957.0,0.02129447]
[1641176350436,0.09124935,46958.0,46957.0,0.21529447]
[1641176351839,0.09124935,46958.0,46957.0,0.02129447]
[1641176352038,0.91024817,46958.0,46957.0,0.02129447]
[1641176352339,0.91024817,46958.0,46957.0,0.21629447]
[1641176353839,0.91024817,46958.0,46957.0,0.02129447]
[1641176354039,0.09124935,46958.0,46957.0,0.02129447]
[1641176354440,0.09124935,46958.0,46957.0,0.21629447]
[1641176355739,0.09124935,46958.0,46957.0,0.02129447]
[1641176356340,0.09124935,46958.0,46957.0,0.21729447]
[1641176358340,0.09124935,46958.0,46957.0,0.21229447]
[1641176358540,0.14033567,46959.0,46957.0,0.21229447]
[1641176358742,0.95971777,46959.0,46957.0,0.21229447]
[1641176359642,0.8193821,46959.0,46958.0,0.02129245]
[1641176359842,0.50338822,46959.0,46958.0,1.21815245]
[1641176360043,0.50338822,46959.0,46958.0,0.42333245]
[1641176360242,0.50338822,46959.0,46958.0,0.43541256]
[1641176360444,0.0001,46960.0,46958.0,0.63341256]
[1641176360643,0.0001,46960.0,46958.0,0.63241256]
[1641176361043,0.0001,46960.0,46959.0,0.01208011]
[1641176361443,0.0001,46960.0,46959.0,1.78490127]
[1641176362344,0.0001,46960.0,46959.0,1.97990127]
[1641176362745,0.35153124,46963.0,46959.0,1.97990127]
[1641176362946,1.39574109,46976.0,46959.0,1.97990127]
[1641176363144,1.39574109,46976.0,46960.0,0.009794]
[1641176363545,1.39574109,46976.0,46964.0,0.14033567]
[1641176363945,0.18,46977.0,46965.0,0.32895]
[1641176364346,0.18,46977.0,46965.0,0.52495]
[1641176364546,0.18,46977.0,46966.0,0.01207813]
[1641176365652,0.18,46977.0,46967.0,0.318763]
[1641176366147,1.909,46978.0,46967.0,0.318763]
[1641176366349,1.909,46978.0,46967.0,0.513763]
[1641176367750,1.909,46978.0,46968.0,0.05351913]
[1641176367952,1.909,46978.0,46968.0,0.13727913]
[1641176368352,1.909,46978.0,46968.0,0.33227913]
[1641176368753,1.909,46978.0,46968.0,0.75809584]
[1641176368952,0.14043567,46980.0,46969.0,0.321078]
[1641176369151,0.82173179,46973.0,46971.0,0.42569368]
[1641176369552,0.82173179,46973.0,46972.0,0.319602]
[1641176369952,0.82173179,46973.0,46971.0,0.318017]
[1641176370252,0.82173179,46973.0,46972.0,0.316296]
[1641176370454,0.82173179,46974.0,46973.0,0.08098505]
[1641176371352,0.0905778,46979.0,46973.0,0.08098505]
[1641176371553,0.0905778,46979.0,46973.0,1.00523437]
[1641176372253,0.0905778,46979.0,46974.0,0.60313432]
[1641176372552,0.0905778,46979.0,46975.0,0.009794]
[1641176372753,0.0905778,46979.0,46975.0,0.325271]
[1641176372954,0.0905778,46979.0,46976.0,0.07334705]
[1641176373353,0.0001,46980.0,46976.0,0.07334705]
[1641176373754,0.0001,46980.0,46977.0,0.319041]
[1641176374454,0.0001,46980.0,46977.0,0.55324082]
[1641176375857,0.0001,46980.0,46975.0,0.75326399]
[1641176375858,0.0001,46980.0,46978.0,0.36224082]
[1641176376455,0.0001,46980.0,46978.0,0.55624082]
[1641176376657,0.0001,46980.0,46978.0,0.194]
[1641176376859,0.18,46979.0,46978.0,0.194]
[1641176377057,0.26687,46979.0,46978.0,0.194]
[1641176377860,0.26687,46979.0,46977.0,0.36224082]
[1641176378062,1.75318889,46979.0,46975.0,0.14033567]
[1641176378461,1.75318889,46979.0,46977.0,0.191]
[1641176379562,0.0905778,46978.0,46977.0,0.191]
[1641176379761,0.0905778,46978.0,46975.0,0.14033567]
[1641176380162,1.57574109,46979.0,46975.0,0.14033567]
[1641176380379,0.53195006,46979.0,46975.0,0.33233567]
[1641176381263,0.18,46976.0,46975.0,0.33233567]
[1641176381763,0.18,46976.0,46975.0,0.14033567]
[1641176382363,0.18,46976.0,46975.0,0.33533567]
[1641176383969,0.18,46976.0,46975.0,0.14033567]
[1641176384268,0.35195006,46978.0,46975.0,0.14033567]
[1641176384468,0.35195006,46978.0,46975.0,0.33533567]
[1641176385671,0.18,46979.0,46975.0,0.33533567]
[1641176386569,0.18,46979.0,46975.0,0.52533567]
[1641176387068,0.35205006,46980.0,46975.0,0.52533567]
[1641176387470,0.0001,46980.0,46975.0,0.52533567]
[1641176387674,0.0001,46980.0,46975.0,0.14033567]
[1641176388371,0.1621,46980.0,46975.0,0.32433567]
[1641176389772,0.0001,46980.0,46975.0,0.14033567]
[1641176389971,0.0001,46980.0,46976.0,0.14033567]
[1641176392373,0.0001,46980.0,46976.0,0.33533567]
[1641176393877,0.0001,46980.0,46976.0,0.14033567]
[1641176394373,0.0001,46980.0,46976.0,0.33433567]
[1641176395173,0.0001,46980.0,46977.0,0.009794]
[1641176395389,0.0001,46980.0,46977.0,0.32751]
[1641176396478,0.0001,46980.0,46977.0,0.51851]
[1641176397384,0.0001,46980.0,46979.0,0.38347198]
[1641176397782,0.0001,46980.0,46979.0,0.70074898]
[1641176398382,0.35195006,46987.0,46985.0,0.42192599]
[1641176398583,0.32795006,46987.0,46985.0,0.42192599]
[1641176398783,0.32795006,46987.0,46986.0,0.318636]
[1641176399182,0.32795006,46987.0,46984.0,0.009794]
[1641176399183,0.32795006,46987.0,46985.0,0.315705]
[1641176399383,0.32795006,46987.0,46984.0,0.009794]
[1641176399784,0.82131681,46990.0,46984.0,0.009794]
[1641176399985,0.0001,46990.0,46987.0,0.14033567]
[1641176400985,1.39584109,46990.0,46987.0,0.14033567]
[1641176401986,1.39574109,46989.0,46987.0,0.14033567]
[1641176402486,1.39574109,46989.0,46987.0,0.32633567]
[1641176403794,0.0001,46990.0,46987.0,0.32633567]
[1641176403795,1.39584109,46990.0,46987.0,0.14033567]
[1641176404495,1.39584109,46990.0,46987.0,0.32633567]
[1641176405998,1.39574109,46989.0,46987.0,0.14033567]
[1641176406398,1.39574109,46989.0,46987.0,0.32633567]
[1641176407700,1.39574109,46989.0,46987.0,0.24808964]
[1641176408401,1.39574109,46989.0,46987.0,0.43608964]
[1641176408803,0.8278832,46990.0,46987.0,0.43608964]
[1641176409003,0.8278832,46990.0,46988.0,0.319836]
[1641176410002,0.8278832,46990.0,46987.0,0.24808964]
[1641176410202,0.0001,46990.0,46987.0,0.24808964]
[1641176410402,0.0001,46990.0,46987.0,0.43608964]
[1641176411003,0.35487224,46988.0,46987.0,0.43608964]
[1641176411803,0.35487224,46988.0,46987.0,0.24808964]
[1641176412205,0.35487224,46989.0,46987.0,0.24808964]
[1641176412405,0.35487224,46989.0,46987.0,0.43808964]
[1641176413204,0.35487224,46989.0,46988.0,0.319238]
[1641176414405,0.35487224,46989.0,46988.0,0.514238]
[1641176414905,0.0001,46990.0,46988.0,0.514238]
[1641176415309,0.8277832,46996.0,46989.0,0.009794]
[1641176415506,0.8277832,46996.0,46992.0,0.06383995]
[1641176415707,0.7507832,46996.0,46995.0,0.20127641]
[1641176415906,0.14033567,47007.0,46995.0,1.32607041]
[1641176416106,0.14033567,47007.0,46995.0,1.46310441]
[1641176416305,0.14033567,47007.0,47000.0,0.14033567]
[1641176416509,0.14033567,47007.0,47001.0,0.009794]
[1641176417307,0.14033567,47007.0,47002.0,0.07434563]
[1641176417907,0.09053806,47006.0,47002.0,0.07434563]
[1641176418106,0.09053806,47006.0,47001.0,0.009794]
[1641176418509,0.09053806,47006.0,47002.0,0.192]
[1641176418709,0.27053806,47006.0,47002.0,0.192]
[1641176419009,0.18,47003.0,47002.0,0.192]
[1641176419812,0.18,47005.0,47000.0,0.14033567]
[1641176420010,0.09053806,47003.0,47000.0,0.14033567]
[1641176420409,0.09053806,47003.0,47000.0,0.32933567]
[1641176421011,0.18,47003.0,47000.0,0.32933567]
[1641176421412,0.18,47003.0,47000.0,0.189]
[1641176421910,0.18,47003.0,46995.0,0.02127641]
[1641176422111,0.18,46998.0,46995.0,0.02127641]
[1641176422615,0.18,46998.0,46995.0,0.19927641]
[1641176422912,0.2308856,47002.0,46995.0,0.19927641]
[1641176423714,0.18,46999.0,46995.0,0.19927641]
[1641176424016,0.18,46999.0,46995.0,0.02127641]
[1641176424213,0.09054993,47001.0,46995.0,0.02127641]
[1641176424413,0.09054993,47001.0,46995.0,0.21827641]
[1641176424818,1.48629102,47001.0,46995.0,0.21827641]
[1641176425014,1.48629102,47001.0,46996.0,0.60313432]
[1641176425015,0.09054993,46998.0,46996.0,0.60313432]
[1641176425615,1.39574109,47000.0,46997.0,0.36219533]
[1641176426414,1.39574109,47000.0,46997.0,0.55319533]
[1641176426916,0.09054993,47001.0,46999.0,0.36219533]
[1641176428017,1.48629102,47001.0,46998.0,0.36219533]
[1641176428516,1.48629102,47001.0,46999.0,0.192]
[1641176429820,1.48629102,47001.0,46998.0,0.36219533]
[1641176430423,1.48629102,47001.0,46998.0,0.55419533]
[1641176431822,1.48629102,47001.0,46998.0,0.36219533]
[1641176432422,0.83322794,47000.0,46998.0,0.192]
[1641176433823,0.83322794,47000.0,46995.0,0.02127641]
[1641176434525,0.83322794,47000.0,46995.0,0.21227641]
[1641176435625,0.3573496,46996.0,46995.0,0.21227641]
[1641176435825,0.3573496,46996.0,46995.0,0.02127641]
[1641176436526,0.3573496,46996.0,46995.0,0.21527641]
[1641176437829,0.3573496,46996.0,46995.0,0.02127641]
[1641176438530,0.3573496,46996.0,46995.0,0.21527641]
[1641176439629,0.3573496,46996.0,46995.0,0.194]
[1641176439830,0.3573496,46996.0,46993.0,0.009794]
[1641176440032,0.3573496,46996.0,46992.0,0.14033567]
[1641176440532,0.181,46993.0,46992.0,0.177]
[1641176440731,0.24701,46993.0,46992.0,0.177]
[1641176441532,0.33755993,46993.0,46992.0,0.177]
[1641176441733,0.33655993,46993.0,46992.0,0.177]
[1641176441931,0.33655993,46993.0,46987.0,0.14033567]
[1641176442134,0.18,46989.0,46987.0,0.14033567]
[1641176442533,0.18,46989.0,46987.0,0.31333567]
[1641176442833,0.18,46989.0,46987.0,0.173]
[1641176443431,0.18,46989.0,46987.0,0.0014]
[1641176443634,0.001,46988.0,46979.0,0.02128514]
[1641176443932,0.83224896,46989.0,46979.0,0.02128514]
[1641176444632,0.14033567,46982.0,46979.0,0.02128514]
[1641176445736,0.49671073,46982.0,46979.0,0.02128514]
[1641176446636,0.32933567,46982.0,46979.0,0.02128514]
[1641176446835,0.32933567,46982.0,46980.0,0.01207572]
[1641176447235,0.189,46982.0,46980.0,0.01207572]
[1641176447635,0.189,46982.0,46981.0,0.321256]
[1641176448038,0.35637506,46983.0,46980.0,0.01207572]
[1641176448237,0.35637506,46984.0,46981.0,0.01207572]
[1641176448638,0.162,46983.0,46981.0,0.01207572]
[1641176448839,0.162,46983.0,46982.0,0.317152]
[1641176449039,0.162,46983.0,46982.0,0.32922772]
[1641176449245,0.162,46983.0,46982.0,0.01207572]
[1641176450038,0.35637506,46986.0,46982.0,0.01207572]
[1641176450237,0.35637506,46987.0,46981.0,0.01207572]
[1641176450737,0.146,46986.0,46983.0,0.01207572]
[1641176450937,0.146,46986.0,46982.0,0.15307572]
[1641176451139,0.146,46986.0,46982.0,0.141]
[1641176451952,0.50237506,46986.0,46982.0,0.141]
[1641176452652,0.54137506,46986.0,46982.0,0.14]
[1641176453552,0.54137506,46986.0,46985.0,0.02128213]
[1641176453952,0.14033567,46991.0,46985.0,0.02128213]
[1641176454252,1.39574109,46989.0,46985.0,0.02128213]
[1641176455052,1.72307676,46991.0,46988.0,0.36228366]
[1641176455952,1.53607676,46991.0,46988.0,0.36228366]
[1641176456553,1.72407676,46991.0,46988.0,0.36228366]
[1641176458159,1.53607676,46991.0,46988.0,0.36228366]
[1641176458458,0.18,46990.0,46988.0,0.36228366]